bitfinex-derivatives/quotes_BTCF0:USTF0_20250309
["timestamp","ask_amount","ask_price","bid_price","bid_amount"]
[1741542132748,0.1215049,82316.0,82315.0,0.22312449]
[1741542132954,0.48838406,82316.0,82315.0,0.34463089]
[1741542133256,0.36687916,82316.0,82315.0,0.34463089]
[1741542133453,0.48838406,82316.0,82315.0,0.34463089]
[1741542133764,0.00607916,82316.0,82315.0,0.34463089]
[1741542133958,0.00607916,82316.0,82315.0,0.70543089]
[1741542134255,0.00765744,82340.0,82315.0,0.91736837]
[1741542134456,0.00765744,82340.0,82316.0,0.0356]
[1741542134661,0.23786033,82332.0,82331.0,0.1214827]
[1741542134858,0.19532804,82332.0,82331.0,0.28252]
[1741542135063,0.3608,82356.0,82355.0,0.1214473]
[1741542135253,0.3608,82356.0,82348.0,0.13256]
[1741542135455,0.1214621,82345.0,82344.0,0.21388]
[1741542135660,0.1214687,82341.0,82338.0,0.0607362]
[1741542135866,0.1174,82340.0,82339.0,0.1214709]
[1741542136062,0.1214796,82335.0,82332.0,0.1939003]
[1741542136365,0.1214796,82335.0,82331.0,0.00018217]
[1741542136366,0.1214813,82332.0,82331.0,0.00018217]
[1741542136562,0.1214813,82332.0,82331.0,0.12166487]
[1741542136871,0.1214813,82332.0,82331.0,0.00018217]
[1741542137162,0.4796,82334.0,82333.0,0.1214798]
[1741542137466,0.2402783,82334.0,82333.0,0.1214798]
[1741542137658,0.2402783,82334.0,82331.0,0.00018217]
[1741542137659,0.1188,82334.0,82332.0,0.1214812]
[1741542137865,0.1188,82334.0,82333.0,0.1214798]
[1741542138559,0.1188,82334.0,82331.0,0.00018217]
[1741542138756,0.1214813,82332.0,82331.0,0.00018217]
[1741542139161,0.1214813,82332.0,82331.0,0.12166487]
[1741542139756,0.1214813,82332.0,82331.0,0.00018217]
[1741542140066,0.01204193,82332.0,82290.0,0.33710716]
[1741542140264,0.1215049,82316.0,82313.0,0.13484]
[1741542140565,0.0607476,82323.0,82310.0,0.2228199]
[1741542140758,0.1822661,82315.0,82314.0,0.1215059]
[1741542140960,0.1215057,82316.0,82315.0,0.0607527]
[1741542141169,0.01196673,82316.0,82311.0,0.1354]
[1741542141372,0.1822652,82314.0,82313.0,0.1215064]
[1741542141663,0.0607551,82313.0,82310.0,0.2228199]
[1741542141861,0.060752,82317.0,82313.0,0.1215093]
[1741542142072,0.060752,82317.0,82316.0,0.1215049]
[1741542142366,0.12167527,82324.0,82323.0,0.1214946]
[1741542142574,0.00018217,82324.0,82320.0,0.1163]
[1741542142765,0.00018217,82324.0,82320.0,0.2377972]
[1741542142766,0.1214975,82321.0,82320.0,0.2377972]
[1741542143159,0.00018217,82324.0,82323.0,0.1214946]
[1741542143563,7e-08,82324.0,82323.0,0.6322946]
[1741542143761,0.1243,82352.0,82347.0,0.1214591]
[1741542143962,0.30919393,82348.0,82347.0,0.1214591]
[1741542144469,0.30919393,82348.0,82344.0,0.1163]
[1741542144662,0.5429892,82347.0,82346.0,0.1163]
[1741542144869,0.1214791,82335.0,82334.0,0.1214763]
[1741542145065,0.0607373,82337.0,82331.0,0.3608]
[1741542145367,0.1285,82334.0,82333.0,0.1214798]
[1741542145568,0.2499783,82334.0,82333.0,0.2411798]
[1741542145765,0.1285,82334.0,82333.0,0.2411798]
[1741542146271,0.1285,82334.0,82331.0,0.3608]
[1741542146564,0.4893,82334.0,82330.0,0.060742]
[1741542146770,0.1285,82334.0,82333.0,0.1214798]
[1741542146963,0.1285,82334.0,82333.0,0.2411798]
[1741542148359,0.1285,82334.0,82333.0,0.7519798]
[1741542148562,0.18069393,82341.0,82340.0,0.1214695]
[1741542148563,0.15324436,82341.0,82340.0,0.1214695]
[1741542148757,0.15324436,82341.0,82340.0,0.6220295]
[1741542149362,0.21683272,82346.0,82345.0,0.1214621]
[1741542149672,0.10831394,82349.0,82348.0,0.1214577]
[1741542149969,0.06576955,82349.0,82348.0,0.1214577]
[1741542150366,0.06576955,82349.0,82348.0,0.2440577]
[1741542150568,0.06576955,82349.0,82348.0,0.3940577]
[1741542150763,0.06576955,82349.0,82348.0,0.2440577]
[1741542150964,0.06576955,82349.0,82348.0,0.3940577]
[1741542151172,0.00018217,82354.0,82353.0,0.1214503]
[1741542151473,0.18052324,82358.0,82357.0,0.1214444]
[1741542151674,0.18052324,82358.0,82357.0,0.4822444]
[1741542152562,0.18052324,82358.0,82357.0,0.50032]
[1741542152761,0.30196614,82358.0,82357.0,0.50032]
[1741542152972,0.30196614,82358.0,82343.0,0.3608]
[1741542152973,0.18052324,82358.0,82343.0,0.3608]
[1741542153159,0.18052324,82358.0,82344.0,0.14012]
[1741542153160,0.1214621,82345.0,82344.0,0.14012]
[1741542153363,0.1214621,82345.0,82344.0,0.2615836]
[1741542153559,0.1214621,82345.0,82344.0,0.14012]
[1741542153763,0.122,82346.0,82345.0,0.1214621]
[1741542153968,0.122,82346.0,82345.0,0.2446621]
[1741542154468,0.2434606,82346.0,82345.0,0.1232]
[1741542154667,0.2434606,82346.0,82345.0,0.1214621]
[1741542155063,0.122,82346.0,82345.0,0.1214621]
[1741542155262,0.122,82346.0,82345.0,0.6062621]
[1741542156661,0.122,82346.0,82344.0,0.14012]
[1741542156870,0.122,82346.0,82345.0,0.1214621]
[1741542157068,0.122,82346.0,82345.0,0.2454621]
[1741542157273,0.122,82346.0,82345.0,0.6062621]
[1741542157671,0.117,82365.0,82364.0,0.1214341]
[1741542157868,0.117,82365.0,82364.0,0.4822341]
[1741542157869,0.1243,82365.0,82364.0,0.4822341]
[1741542158178,0.33825112,82375.0,82365.0,0.1214326]
[1741542158477,0.33825112,82375.0,82365.0,0.25720621]
[1741542158672,0.21683272,82375.0,82365.0,0.25720621]
[1741542159170,7e-08,82366.0,82365.0,0.62490621]
[1741542159570,0.17429462,82375.0,82365.0,0.54037361]
[1741542159770,0.17429462,82375.0,82374.0,0.4822193]
[1741542159979,0.1213881,82396.0,82395.0,0.1213869]
[1741542160278,0.1243,82396.0,82395.0,0.1213869]
[1741542161274,0.2456869,82396.0,82395.0,0.1213869]
[1741542161477,0.1243,82396.0,82395.0,0.1213869]
[1741542162279,0.244,82396.0,82395.0,0.1213869]
[1741542162776,0.1243,82396.0,82395.0,0.49132409]
[1741542162975,0.05746183,82400.0,82399.0,0.1213825]
[1741542163184,0.03267226,82400.0,82399.0,0.1213825]
[1741542163480,0.243217,82404.0,82403.0,0.1213766]
[1741542163779,0.243217,82404.0,82403.0,0.2588566]
[1741542163780,0.15817593,82404.0,82403.0,0.2588566]
[1741542164477,0.15817593,82404.0,82403.0,0.3808566]
[1741542164677,0.1151,82406.0,82405.0,0.1213737]
[1741542164885,0.1151,82406.0,82405.0,0.4821737]
[1741542165182,0.1151,82406.0,82403.0,0.13748]
[1741542165374,0.1264,82405.0,82404.0,0.1213751]
[1741542165883,0.1213751,82404.0,82403.0,0.3802308]
[1741542166073,0.1151,82404.0,82403.0,0.2588551]
[1741542166581,0.1264,82405.0,82404.0,0.1213751]
[1741542167478,0.1264,82405.0,82397.0,0.3608]
[1741542167671,0.1183,82404.0,82398.0,0.13624]
[1741542167878,0.1183,82404.0,82403.0,0.1213766]
[1741542168187,0.0606883,82403.0,82398.0,0.2576217]
[1741542168384,0.0606883,82403.0,82402.0,0.1213766]
[1741542168771,0.0606869,82405.0,82402.0,0.1213766]
[1741542168983,0.2410707,82407.0,82406.0,0.1213722]
[1741542169477,0.1197,82407.0,82406.0,0.1213722]
[1741542169674,0.1213737,82405.0,82404.0,0.060687]
[1741542169886,0.1213799,82403.0,82402.0,0.2427524]
[1741542170080,0.1820601,82406.0,82405.0,0.1213737]
[1741542170279,0.1213825,82401.0,82400.0,0.1213772]
[1741542170985,0.1213869,82396.0,82377.0,0.2784074]
[1741542171179,0.1213958,82390.0,82386.0,0.13572]
[1741542171484,0.1213931,82392.0,82391.0,0.1213928]
[1741542171684,0.1246,82392.0,82389.0,0.22300521]
[1741542171883,0.2459936,82392.0,82391.0,0.1213943]
[1741542172379,0.1246,82392.0,82391.0,0.1213943]
[1741542172780,0.1213958,82390.0,82389.0,0.22300521]
[1741542172981,0.1214193,82374.0,82373.0,0.21372]
[1741542173176,0.3608,82385.0,82373.0,0.22578004]
[1741542173482,0.4862,82392.0,82391.0,0.1213943]
[1741542173483,0.36164,82392.0,82391.0,0.1213943]
[1741542173683,0.0606942,82395.0,82391.0,0.1213943]
[1741542173881,0.1213994,82388.0,82387.0,0.1213957]
[1741542174083,0.1214016,82386.0,82385.0,0.12158325]
[1741542174693,0.1214016,82386.0,82385.0,0.12158515]
[1741542174884,0.3608,82396.0,82385.0,0.00018205]
[1741542175079,0.1959256,82407.0,82395.0,0.1213884]
[1741542175282,0.0606855,82407.0,82400.0,0.121381]
[1741542175485,0.0606855,82407.0,82398.0,0.0606913]
[1741542175486,0.48236155,82401.0,82398.0,0.0606913]
[1741542175686,0.1213899,82394.0,82393.0,0.13528]
[1741542175885,0.1213899,82394.0,82383.0,0.0607025]
[1741542175886,0.1214016,82387.0,82386.0,0.1213994]
[1741542176088,0.1213981,82389.0,82388.0,0.1213972]
[1741542176288,0.2436,82393.0,82386.0,0.1213994]
[1741542176486,0.0606985,82390.0,82388.0,0.1213979]
[1741542176685,0.1214016,82387.0,82386.0,0.1214009]
[1741542176885,0.1214016,82386.0,82385.0,0.00018205]
[1741542177091,0.1214016,82386.0,82385.0,0.12158515]
[1741542177596,0.1214016,82386.0,82385.0,0.00018205]
[1741542178595,0.1197,82389.0,82385.0,0.00018205]
[1741542178795,0.1214016,82386.0,82385.0,0.12158515]
[1741542179098,0.1214016,82386.0,82385.0,0.00018205]
[1741542179501,0.4822016,82386.0,82385.0,0.00018205]
[1741542180500,0.3608,82386.0,82385.0,0.12158515]
[1741542181095,0.124,82387.0,82386.0,0.1214016]
[1741542181286,0.124,82387.0,82386.0,0.2458016]
[1741542181693,0.1214016,82386.0,82385.0,0.00018205]
[1741542181990,0.1214016,82386.0,82385.0,0.12158515]
[1741542182185,0.2481016,82386.0,82385.0,0.12158515]
[1741542182589,0.2481016,82386.0,82385.0,0.00018205]
[1741542183096,0.1214279,82371.0,82370.0,0.1214216]
[1741542183291,0.3608,82384.0,82369.0,0.01203811]
[1741542183496,0.2014,82398.0,82365.0,0.1241]
[1741542183497,0.1191,82383.0,82382.0,0.1214075]
[1741542183692,0.2458,82383.0,82382.0,0.13329589]
[1741542183894,0.2458,82383.0,82381.0,0.1241]
[1741542184088,0.1214075,82382.0,82379.0,0.0607053]
[1741542184288,0.1214075,82382.0,82381.0,0.121409]
[1741542184487,0.1213979,82389.0,82388.0,0.1213987]
[1741542184691,0.1191,82389.0,82388.0,0.1213987]
[1741542185397,0.1191,82389.0,82381.0,0.3608]
[1741542185398,0.1191,82389.0,82371.0,0.3608]
[1741542185605,0.1191,82389.0,82369.0,0.2554655]
[1741542185606,0.1214179,82375.0,82369.0,0.2554655]
[1741542185898,0.1214179,82375.0,82373.0,0.01213512]
[1741542186202,0.1214179,82375.0,82364.0,0.22330652]
[1741542186502,0.1214179,82375.0,82374.0,0.12160135]
[1741542186896,0.1214179,82375.0,82374.0,0.00018205]
[1741542187105,0.6066179,82375.0,82374.0,0.00018205]
[1741542187891,0.2458179,82375.0,82374.0,0.00018205]
[1741542188099,0.1244,82375.0,82374.0,0.12160135]
[1741542188499,0.13336,82386.0,82374.0,0.00018205]
[1741542188804,0.1214179,82375.0,82374.0,0.00018205]
[1741542189803,0.1214179,82375.0,82374.0,0.12160135]
[1741542189993,0.1214179,82375.0,82374.0,0.00018205]
[1741542190201,0.24521847,82375.0,82374.0,0.00018205]
[1741542191007,0.24521847,82375.0,82374.0,0.12160135]
[1741542191207,0.24521847,82375.0,82374.0,0.00018205]
[1741542191401,0.24521847,82375.0,82374.0,0.12160135]
[1741542191899,0.12380057,82375.0,82374.0,0.12160135]
[1741542192104,0.00390057,82375.0,82374.0,0.48240135]
[1741542192297,0.00390057,82375.0,82374.0,0.61484135]
[1741542192495,0.00018205,82390.0,82379.0,0.121412]
[1741542192708,0.00018205,82390.0,82374.0,0.89124135]
[1741542192709,0.00018205,82390.0,82389.0,0.1213972]
[1741542193010,0.28913578,82395.0,82394.0,0.1213899]
[1741542193197,0.00182123,82409.0,82408.0,0.1213692]
[1741542193399,0.25221783,82419.0,82418.0,0.1213545]
[1741542193599,0.25221783,82419.0,82409.0,0.1264]
[1741542193900,0.1909773,82418.0,82417.0,0.121356]
[1741542194096,0.1303,82418.0,82411.0,0.0606824]
[1741542194405,0.1213614,82414.0,82409.0,0.3608]
[1741542194601,0.1213642,82412.0,82411.0,0.1213636]
[1741542194795,0.1213664,82411.0,82410.0,0.1213653]
[1741542195001,0.0606814,82413.0,82412.0,0.1213633]
[1741542195205,0.1303,82418.0,82408.0,0.35506565]
[1741542195408,0.1303,82418.0,82417.0,0.121356]
[1741542195612,0.31289463,82419.0,82417.0,0.121356]
[1741542195613,0.25221783,82419.0,82418.0,0.1213545]
[1741542195804,0.25221783,82419.0,82411.0,0.1213632]
[1741542196007,0.1202,82418.0,82408.0,0.71586565]
[1741542196203,0.3022333,82418.0,82417.0,0.121356]
[1741542196811,0.1202,82418.0,82417.0,0.121356]
[1741542197024,0.2415545,82418.0,82417.0,0.121356]
[1741542197214,0.121356,82417.0,82416.0,0.13345922]
[1741542197508,0.121356,82417.0,82416.0,0.01210322]
[1741542197705,0.121356,82417.0,82416.0,0.1213575]
[1741542198499,0.121356,82417.0,82416.0,0.13316847]
[1741542198701,0.4799,82421.0,82408.0,0.71586565]
[1741542198915,0.1213678,82409.0,82408.0,0.35370565]
[1741542199217,0.1213678,82409.0,82408.0,0.22266565]
[1741542199512,0.1213678,82409.0,82408.0,0.34403485]
[1741542199812,0.4821633,82414.0,82413.0,0.1213619]
[1741542200011,0.3608,82414.0,82411.0,0.0606818]
[1741542200206,0.1213633,82412.0,82411.0,0.0606818]
[1741542200406,0.1213678,82410.0,82409.0,0.1213664]
[1741542200611,0.0606869,82405.0,82401.0,0.21534258]
[1741542200811,0.4821781,82402.0,82401.0,0.21534258]
[1741542201009,0.6128981,82402.0,82401.0,0.21534258]
[1741542201212,0.6128981,82402.0,82387.0,0.35890431]
[1741542201213,0.1213869,82396.0,82387.0,0.35890431]
[1741542201513,0.4821869,82396.0,82387.0,0.35890431]
[1741542201701,0.4821869,82396.0,82388.0,0.060699]
[1741542201906,0.4821869,82396.0,82395.0,0.40851185]
[1741542202213,0.1179,82401.0,82400.0,0.121381]
[1741542202512,0.00018205,82404.0,82403.0,0.1213766]
[1741542205812,0.00018205,82404.0,82403.0,0.2504766]
[1741542207016,0.1213869,82396.0,82393.0,0.1213905]
[1741542207310,0.1187,82403.0,82395.0,0.13008]
[1741542207618,0.1303,82402.0,82396.0,0.3608]
[1741542207811,0.1303,82402.0,82395.0,0.13008]
[1741542207812,0.0606918,82399.0,82395.0,0.13008]
[1741542208018,0.1213869,82396.0,82395.0,0.2514654]
[1741542208213,0.1213869,82396.0,82395.0,0.13008]
[1741542208419,0.1213913,82393.0,82392.0,0.21372]
[1741542208614,0.1213987,82388.0,82385.0,0.008951]
[1741542208922,0.4821987,82388.0,82385.0,0.008951]
[1741542209108,0.4821987,82388.0,82380.0,0.12944]
[1741542209915,0.4821987,82388.0,82383.0,0.00892459]
[1741542210114,0.4821987,82388.0,82387.0,0.12158225]
[1741542210316,0.1213987,82388.0,82387.0,0.12158225]
[1741542211116,0.1303,82392.0,82389.0,0.1213972]
[1741542211315,0.1213787,82402.0,82399.0,0.0606906]
[1741542211520,0.254,82401.0,82400.0,0.1251]
[1741542211710,0.375381,82401.0,82400.0,0.246481]
[1741542212215,0.1307,82401.0,82400.0,0.246481]
[1741542212518,0.1197,82407.0,82403.0,0.1213766]
[1741542212716,0.3608,82418.0,82403.0,0.1213766]
[1741542213014,0.1263,82416.0,82403.0,0.1213766]
[1741542213320,0.1213593,82415.0,82403.0,0.1213766]
[1741542213521,0.1263,82416.0,82403.0,0.3639766]
[1741542214020,0.1869788,82416.0,82403.0,0.3639766]
[1741542214227,0.1213669,82410.0,82403.0,0.3639766]
[1741542214518,0.1213654,82411.0,82403.0,0.3639766]
[1741542214717,0.1213686,82409.0,82403.0,0.3639766]
[1741542215217,0.12868,82430.0,82403.0,0.3639766]
[1741542215218,0.14434566,82421.0,82403.0,0.2426]
[1741542215416,0.26569576,82421.0,82418.0,0.0606766]
[1741542215608,0.1213516,82420.0,82419.0,0.252753]
[1741542215812,0.2430516,82420.0,82419.0,0.374053]
[1741542216012,0.1217,82420.0,82419.0,0.374053]
[1741542216212,0.3686516,82420.0,82419.0,0.2527]
[1741542216418,0.2473,82420.0,82419.0,0.2527]
[1741542216726,0.3686516,82420.0,82419.0,0.374053]
[1741542217116,0.2473,82420.0,82419.0,0.374053]
[1741542217618,0.1213633,82412.0,82411.0,0.00018205]
[1741542217919,0.1213562,82418.0,82417.0,0.121353]
[1741542218417,0.1213619,82413.0,82412.0,0.3740628]
[1741542218813,0.1213619,82413.0,82412.0,0.2426608]
[1741542219014,0.1213619,82413.0,82412.0,0.364022]
[1741542219211,0.1213619,82413.0,82412.0,0.2426608]
[1741542219412,0.1213633,82412.0,82411.0,0.00018205]
[1741542219713,0.2502633,82412.0,82411.0,0.00018205]
[1741542220020,0.62285063,82412.0,82411.0,0.00018205]
[1741542220319,0.1289,82412.0,82411.0,0.12154685]
[1741542220908,0.2502633,82412.0,82411.0,0.37684685]
[1741542221112,0.6110633,82412.0,82411.0,0.00018205]
[1741542223111,0.4897,82412.0,82411.0,0.12154685]
[1741542223716,0.1289,82412.0,82411.0,0.13368666]
[1741542224027,0.01216383,82422.0,82419.0,0.121353]
[1741542224028,0.26649826,82420.0,82419.0,0.121353]
[1741542224217,0.14434566,82420.0,82419.0,0.121353]
[1741542224425,0.26569726,82420.0,82419.0,0.121353]
[1741542224830,0.26569726,82420.0,82419.0,0.251553]
[1741542225325,0.14434566,82420.0,82419.0,0.251553]
[1741542225515,0.14434566,82420.0,82419.0,0.372753]
[1741542226013,0.26569726,82420.0,82419.0,0.372753]
[1741542226329,0.14434566,82420.0,82419.0,0.372753]
[1741542226531,0.1213505,82421.0,82420.0,0.1213516]
[1741542226716,0.1213505,82421.0,82420.0,0.3727516]
[1741542227525,0.1271,82425.0,82424.0,0.1213457]
[1741542227823,0.1271,82425.0,82417.0,0.0606774]
[1741542227824,0.1213633,82412.0,82411.0,0.00018205]
[1741542228224,0.3608,82418.0,82417.0,0.121356]
[1741542228522,0.3608,82418.0,82411.0,0.00018205]
[1741542228523,0.1213619,82413.0,82412.0,0.1283]
[1741542228718,0.1213619,82413.0,82412.0,0.2586]
[1741542229317,0.1198,82417.0,82412.0,0.2586]
[1741542229517,0.1198,82417.0,82415.0,0.1213579]
[1741542229722,0.1198,82417.0,82416.0,0.2586]
[1741542230021,0.241156,82417.0,82416.0,0.2586]
[1741542230230,0.1198,82417.0,82416.0,0.3799575]
[1741542230423,0.1198,82417.0,82411.0,0.00018205]
[1741542230618,0.1198,82417.0,82411.0,0.12858205]
[1741542230823,0.1198,82417.0,82415.0,0.1213575]
[1741542230824,0.1213595,82416.0,82415.0,0.1213575]
[1741542231028,0.1213604,82414.0,82413.0,0.1213604]
[1741542231219,0.1213633,82412.0,82411.0,0.12154565]
[1741542231626,0.1259,82413.0,82412.0,0.1213633]
[1741542232022,0.3608,82425.0,82424.0,0.1213457]
[1741542232023,0.27178248,82425.0,82424.0,0.1213457]
[1741542232318,0.00018205,82428.0,82427.0,0.1213413]
[1741542233726,0.12288205,82428.0,82420.0,0.121349]
[1741542233919,0.1213501,82421.0,82420.0,0.121349]
[1741542234530,0.0606713,82426.0,82420.0,0.121349]
[1741542234531,0.1227,82422.0,82421.0,0.1213501]
[1741542235129,0.2440486,82422.0,82421.0,0.1213501]
[1741542235324,0.1213535,82421.0,82420.0,0.1213501]
[1741542235533,0.1227,82422.0,82421.0,0.1213501]
[1741542236533,0.2440486,82422.0,82421.0,0.1213501]
[1741542237033,0.121356,82417.0,82416.0,0.3608]
[1741542237331,0.121356,82417.0,82416.0,0.4872]
[1741542237628,0.121356,82417.0,82416.0,0.6085575]
[1741542238324,0.121356,82417.0,82416.0,0.4821575]
[1741542239132,0.18062066,82434.0,82416.0,0.5108]
[1741542239324,0.18062066,82434.0,82433.0,0.1213324]
[1741542239522,0.13781148,82440.0,82438.0,0.1213251]
[1741542239828,0.13781148,82440.0,82439.0,0.4821236]
[1741542240122,0.25221783,82453.0,82439.0,0.4821236]
[1741542240123,0.17963343,82453.0,82452.0,0.1213045]
[1741542240322,0.28543972,82459.0,82452.0,0.70024]
[1741542240527,0.23937702,82459.0,82458.0,0.1212956]
[1741542241230,0.23937702,82459.0,82458.0,0.49420157]
[1741542241738,0.32527775,82466.0,82465.0,0.1212853]
[1741542241935,0.1212523,82488.0,82474.0,0.1212721]
[1741542241936,0.1289,82479.0,82474.0,0.1212721]
[1741542242135,0.47841729,82475.0,82474.0,0.2482321]
[1741542242435,0.35714669,82475.0,82474.0,0.2482321]
[1741542242735,0.35714669,82475.0,82474.0,0.6090321]
[1741542242925,0.35714669,82475.0,82474.0,0.25776]
[1741542243128,0.35714669,82475.0,82470.0,0.21364]
[1741542243129,0.1212765,82471.0,82470.0,0.21364]
[1741542243525,0.2487,82474.0,82473.0,0.1212736]
[1741542243734,0.1205,82474.0,82473.0,0.1212736]
[1741542244123,0.44639369,82480.0,82479.0,0.1212648]
[1741542244323,0.32513039,82480.0,82479.0,0.2481848]
[1741542244627,0.24017941,82480.0,82479.0,0.61822139]
[1741542245031,0.19770392,82480.0,82479.0,0.61822139]
[1741542245226,0.39254209,82489.0,82479.0,0.61822139]
[1741542245227,0.07390869,82489.0,82481.0,0.0606303]
[1741542245426,0.00181928,82497.0,82496.0,0.1212398]
[1741542245640,0.46186027,82513.0,82499.0,0.0606176]
[1741542245938,0.56573711,82537.0,82496.0,0.5482993]
[1741542245939,0.00181854,82531.0,82524.0,0.1211986]
[1741542246123,0.00181854,82531.0,82524.0,0.2480386]
[1741542246124,0.25493208,82525.0,82524.0,0.2480386]
[1741542246734,0.25493208,82525.0,82524.0,0.26031341]
[1741542247542,0.21245659,82525.0,82524.0,0.26031341]
[1741542247742,0.1699811,82525.0,82524.0,0.26031341]
[1741542248038,0.1286,82543.0,82542.0,0.1211722]
[1741542248238,0.1286,82543.0,82542.0,0.2474922]
[1741542248440,0.1324672,82543.0,82542.0,0.2474922]
[1741542248633,0.2536379,82543.0,82542.0,0.12632]
[1741542248838,0.2536379,82543.0,82540.0,0.3608]
[1741542249034,0.1211737,82541.0,82540.0,0.3608]
[1741542249433,0.1211825,82535.0,82534.0,0.12650181]
[1741542249633,0.4819825,82535.0,82534.0,0.00018181]
[1741542249835,0.6079825,82535.0,82534.0,1e-08]
[1741542250046,0.62370443,82535.0,82534.0,1e-08]
[1741542250529,0.8690497,82535.0,82534.0,1e-08]
[1741542250737,0.7430497,82535.0,82534.0,1e-08]
[1741542251544,0.75526563,82535.0,82534.0,1e-08]
[1741542251727,0.7430497,82535.0,82534.0,1e-08]
[1741542251928,0.6218672,82535.0,82534.0,0.12118391]
[1741542252333,0.0038672,82535.0,82534.0,0.12118391]
[1741542252531,0.0038672,82535.0,82534.0,0.50322391]
[1741542252732,0.0098672,82535.0,82534.0,0.86402391]
[1741542253027,0.006,82535.0,82534.0,0.86402391]
[1741542253229,0.1271825,82535.0,82534.0,0.86402391]
[1741542253432,0.006,82535.0,82534.0,0.86402391]
[1741542254034,0.00018142,82543.0,82541.0,0.1211737]
[1741542254233,0.00018142,82543.0,82542.0,0.8624922]
[1741542254437,0.3608,82574.0,82551.0,0.0605792]
[1741542254630,0.1211428,82562.0,82561.0,0.3608]
[1741542254944,0.121155,82554.0,82552.0,0.74196]
[1741542255134,0.0605692,82566.0,82553.0,0.12492]
[1741542255334,0.2456,82565.0,82555.0,0.3608]
[1741542255841,0.1201517,82556.0,82555.0,0.3608]
[1741542256141,0.006,82562.0,82553.0,0.49744652]
[1741542256332,0.1211464,82560.0,82554.0,0.2519535]
[1741542256534,0.1211531,82555.0,82554.0,0.1308]
[1741542256734,0.1211531,82555.0,82554.0,0.2594]
[1741542256934,0.1211531,82555.0,82554.0,0.25672]
[1741542257141,0.06241367,82556.0,82554.0,0.12592]
[1741542257330,0.2436531,82555.0,82554.0,0.12592]
[1741542257734,0.1211575,82552.0,82551.0,0.21362169]
[1741542258043,0.4819575,82552.0,82551.0,0.21362169]
[1741542258542,0.493732,82552.0,82551.0,0.21362169]
[1741542258841,0.493732,82552.0,82533.0,0.1311]
[1741542258842,0.1211751,82540.0,82539.0,0.3608]
[1741542259541,0.121181,82536.0,82535.0,0.2134]
[1741542259940,0.1211928,82528.0,82527.0,0.00018169]
[1741542260540,0.1211928,82528.0,82527.0,0.359086]
[1741542260744,0.12486513,82528.0,82527.0,0.359086]
[1741542260948,0.24605793,82528.0,82527.0,0.359086]
[1741542261248,0.24605793,82528.0,82527.0,0.290912]
[1741542261544,0.24988395,82528.0,82527.0,0.2522258]
[1741542261742,0.24988395,82528.0,82522.0,0.31881187]
[1741542261743,0.1212001,82523.0,82522.0,0.31881187]
[1741542262047,0.1212251,82506.0,82505.0,0.133]
[1741542262438,0.12505112,82506.0,82505.0,0.133]
[1741542262945,0.1212251,82506.0,82505.0,0.133]
[1741542263344,0.1212251,82506.0,82505.0,0.14187062]
[1741542263648,0.1212251,82506.0,82505.0,0.26309712]
[1741542263949,0.1212251,82506.0,82505.0,0.00887062]
[1741542264147,0.1212265,82505.0,82504.0,0.69158207]
[1741542264340,0.3754265,82505.0,82504.0,0.93115497]
[1741542264536,0.3704265,82505.0,82500.0,0.1328]
[1741542264748,0.1212324,82501.0,82500.0,0.2540339]
[1741542265341,0.1212324,82501.0,82500.0,0.1328]
[1741542265543,0.1152324,82501.0,82500.0,0.2540339]
[1741542265845,0.2542,82505.0,82504.0,0.121228]
[1741542266041,0.3754265,82505.0,82504.0,0.482028]
[1741542266441,0.2522265,82505.0,82504.0,0.482028]
[1741542266848,0.1212265,82505.0,82504.0,0.482028]
[1741542267040,0.00018156,82514.0,82511.0,0.1212177]
[1741542267239,0.00018156,82514.0,82513.0,0.4820148]
[1741542267744,0.12139486,82514.0,82510.0,0.21344]
[1741542267939,0.1212177,82511.0,82510.0,0.21344]
[1741542268541,0.2499148,82513.0,82512.0,0.1212163]
[1741542269048,0.1212177,82511.0,82510.0,0.00068]
[1741542269249,0.1212207,82509.0,82508.0,0.1215]
[1741542269641,0.1192265,82505.0,82504.0,0.3608]
[1741542269953,0.0606124,82507.0,82500.0,0.00905885]
[1741542269954,0.1212324,82501.0,82500.0,0.00905885]
[1741542270152,0.1212368,82498.0,82497.0,0.00940291]
[1741542270355,0.1212368,82498.0,82497.0,0.00018181]
[1741542270554,0.1212368,82498.0,82497.0,0.12142011]
[1741542270941,0.13303745,82498.0,82497.0,0.00018181]
[1741542271147,0.0606244,82490.0,82483.0,0.1333]
[1741542271352,0.1212603,82482.0,82481.0,0.40729158]
[1741542271551,0.1212603,82482.0,82481.0,0.28602978]
[1741542271851,0.1212633,82480.0,82479.0,0.1333]
[1741542272042,0.1212633,82480.0,82479.0,0.2545648]
[1741542272242,0.1212611,82482.0,82481.0,0.1212603]
[1741542272551,0.2453589,82483.0,82482.0,0.1212603]
[1741542272950,0.1212603,82482.0,82481.0,0.1317]
[1741542273154,0.2427603,82482.0,82481.0,0.1317]
[1741542273561,0.2427603,82482.0,82479.0,0.00909555]
[1741542273853,0.1212706,82475.0,82474.0,0.2467721]
[1741542274051,0.1202706,82475.0,82474.0,0.2467721]
[1741542274553,0.12681221,82475.0,82472.0,0.1261]
[1741542274854,0.12681221,82475.0,82471.0,0.00941357]
[1741542274855,0.1212751,82472.0,82471.0,0.00941357]
[1741542275446,0.13207841,82472.0,82471.0,0.00941357]
[1741542276143,0.49287841,82472.0,82471.0,0.00941357]
[1741542276848,0.49587841,82472.0,82471.0,0.00941357]
[1741542277053,0.49587841,82472.0,82471.0,0.00018181]
[1741542277448,0.49787841,82472.0,82471.0,0.00018181]
[1741542278259,0.51284613,82472.0,82471.0,0.00018181]
[1741542278460,0.49787841,82472.0,82471.0,0.00018181]
[1741542278763,0.1212809,82468.0,82467.0,0.19811852]
[1741542278962,0.2423609,82468.0,82467.0,0.16386452]
[1741542279159,0.121303,82453.0,82452.0,0.2556]
[1741542279957,0.25800631,82453.0,82452.0,0.2556]
[1741542280157,0.13210631,82453.0,82452.0,0.26491313]
[1741542280361,0.13210631,82453.0,82452.0,0.38621763]
[1741542280662,0.1213104,82448.0,82447.0,0.482111]
[1741542281368,0.13211371,82448.0,82447.0,0.482111]
[1741542281861,0.13211371,82448.0,82447.0,0.121311]
[1741542282067,0.13211371,82448.0,82447.0,0.614811]
[1741542282565,0.13211371,82448.0,82444.0,0.00018192]
[1741542282861,0.1213207,82441.0,82440.0,0.00901362]
[1741542283066,0.13212401,82441.0,82440.0,0.00901362]
[1741542283765,0.1213486,82422.0,82416.0,0.1284]
[1741542283959,0.1213501,82421.0,82420.0,0.26768267]
[1741542284263,0.1213516,82420.0,82414.0,0.00926397]
[1741542284466,0.1213516,82420.0,82413.0,0.12728192]
[1741542284467,0.1213575,82416.0,82413.0,0.12728192]